[Event "*** Titled Tuesday Blitz"]
[Site "Chess.com"]
[Date "2020.01.07"]
[Round "5"]
[White "ITheOnlyME"]
[Black "DucksParadise"]
[Result "1-0"]
[WhiteElo "2315"]
[BlackElo "2039"]
[TimeControl "180+2"]
[EndTime "14:09:07 PST"]
[Termination "ITheOnlyME won by resignation"]

1. d4 {[%clk 0:03:01.9]} 1... Nf6 {[%clk 0:02:58]} 2. Bf4 {[%clk 0:03:03.1]}
2... g6 {[%clk 0:02:55.9]} 3. Nc3 {[%clk 0:03:00]} 3... d5 {[%clk 0:02:54.5]} 4.
e3 {[%clk 0:02:54.6]} 4... Bg7 {[%clk 0:02:51.4]} 5. h4 {[%clk 0:02:55]} 5... h5
{[%clk 0:02:48.1]} 6. Nf3 {[%clk 0:02:52.1]} 6... O-O {[%clk 0:02:36.6]} 7. Be2
{[%clk 0:02:49.6]} 7... Bg4 {[%clk 0:02:34.5]} 8. Ne5 {[%clk 0:02:50.5]} 8...
Bxe2 {[%clk 0:02:32.3]} 9. Qxe2 {[%clk 0:02:52.4]} 9... c5 {[%clk 0:02:25.4]}
10. dxc5 {[%clk 0:02:52.2]} 10... Qa5 {[%clk 0:02:23.2]} 11. Qb5 {[%clk
0:02:47.1]} 11... Qxb5 {[%clk 0:02:16.9]} 12. Nxb5 {[%clk 0:02:47.9]} 12... Na6
{[%clk 0:02:17.9]} 13. Nd3 {[%clk 0:02:41.8]} 13... Ne4 {[%clk 0:02:14.4]} 14.
O-O-O {[%clk 0:02:35.8]} 14... Rfd8 {[%clk 0:01:58.1]} 15. b4 {[%clk 0:02:18.8]}
15... Nc3 {[%clk 0:01:56.6]} 16. Nxc3 {[%clk 0:02:19.1]} 16... Bxc3 {[%clk
0:01:58.5]} 17. a3 {[%clk 0:02:18.1]} 17... b6 {[%clk 0:01:56]} 18. cxb6 {[%clk
0:02:12.9]} 18... axb6 {[%clk 0:01:57]} 19. Be5 {[%clk 0:02:14.6]} 19... d4
{[%clk 0:01:46.8]} 20. Bxd4 {[%clk 0:02:07.9]} 20... Rxd4 {[%clk 0:01:46.6]} 21.
exd4 {[%clk 0:02:09.8]} 21... Nc7 {[%clk 0:01:45.2]} 22. Kb1 {[%clk 0:01:52.5]}
22... Nb5 {[%clk 0:01:41.5]} 23. Nb2 {[%clk 0:01:28.4]} 23... Nxa3+ {[%clk
0:01:36.7]} 24. Ka2 {[%clk 0:01:29.6]} 24... Nb5+ {[%clk 0:01:20.6]} 25. Kb3
{[%clk 0:01:10.2]} 25... Ra3+ {[%clk 0:01:19.7]} 26. Kc4 {[%clk 0:01:11.3]}
26... Nd6+ {[%clk 0:01:20.6]} 27. Kd5 {[%clk 0:01:12.8]} 27... Bxb2 {[%clk
0:01:04.6]} 28. c4 {[%clk 0:01:12.8]} 28... Ra4 {[%clk 0:00:34.7]} 29. c5 {[%clk
0:00:52.6]} 29... bxc5 {[%clk 0:00:32.8]} 30. dxc5 {[%clk 0:00:48.6]} 30... Nf5
{[%clk 0:00:23.8]} 31. Kc4 {[%clk 0:00:44.6]} 31... Be5 {[%clk 0:00:21.3]} 32.
Kb3 {[%clk 0:00:29.8]} 32... Ra8 {[%clk 0:00:19.4]} 33. Rhe1 {[%clk 0:00:27.8]}
33... f6 {[%clk 0:00:17]} 34. g3 {[%clk 0:00:27.7]} 34... Rb8 {[%clk 0:00:16.5]}
35. f4 {[%clk 0:00:24.9]} 35... Nd4+ {[%clk 0:00:06.8]} 36. Kc4 {[%clk
0:00:23.7]} 36... Nf3 {[%clk 0:00:07.2]} 37. fxe5 {[%clk 0:00:22.2]} 37... Nxe1
{[%clk 0:00:07.8]} 38. Rxe1 {[%clk 0:00:24.1]} 1-0

[Event "*** Titled Tuesday Blitz"]
[Site "Chess.com"]
[Date "2020.01.07"]
[Round "5"]
[White "patrisiii123"]
[Black "RaunakSadhwani2005"]
[Result "1/2-1/2"]
[WhiteElo "2481"]
[BlackElo "2733"]
[TimeControl "180+2"]
[EndTime "14:09:09 PST"]
[Termination "Game drawn by agreement"]

1. e4 {[%clk 0:03:01.9]} 1... c5 {[%clk 0:03:00.5]} 2. Nf3 {[%clk 0:02:58.3]}
2... d6 {[%clk 0:03:01.8]} 3. d4 {[%clk 0:02:59.8]} 3... cxd4 {[%clk 0:03:03.7]}
4. Nxd4 {[%clk 0:03:01.5]} 4... Nf6 {[%clk 0:03:05.3]} 5. Nc3 {[%clk 0:02:54.3]}
5... Nc6 {[%clk 0:03:05.5]} 6. Be2 {[%clk 0:02:52.9]} 6... e5 {[%clk 0:03:04]}
7. Nb3 {[%clk 0:02:53.6]} 7... Be7 {[%clk 0:03:04.1]} 8. O-O {[%clk 0:02:54.4]}
8... O-O {[%clk 0:03:05.3]} 9. Kh1 {[%clk 0:02:53.4]} 9... Be6 {[%clk
0:03:05.7]} 10. f4 {[%clk 0:02:54.8]} 10... Rc8 {[%clk 0:03:04.5]} 11. Be3
{[%clk 0:02:42]} 11... exf4 {[%clk 0:03:04.7]} 12. Bxf4 {[%clk 0:02:42.4]} 12...
d5 {[%clk 0:03:06.1]} 13. exd5 {[%clk 0:02:33.9]} 13... Nxd5 {[%clk 0:03:08]}
14. Nxd5 {[%clk 0:02:34.9]} 14... Bxd5 {[%clk 0:03:09.6]} 15. c3 {[%clk
0:02:35.7]} 15... Bg5 {[%clk 0:03:07.8]} 16. Bxg5 {[%clk 0:02:32.7]} 16... Qxg5
{[%clk 0:03:09.7]} 17. Bf3 {[%clk 0:02:34.4]} 17... Rcd8 {[%clk 0:03:10.4]} 18.
Bxd5 {[%clk 0:02:34.8]} 18... Rxd5 {[%clk 0:03:12.3]} 19. Qf3 {[%clk 0:02:35.2]}
19... Rd7 {[%clk 0:03:10.6]} 20. Rad1 {[%clk 0:02:34.1]} 20... Rfd8 {[%clk
0:03:10.9]} 21. Rxd7 {[%clk 0:02:33.9]} 21... Rxd7 {[%clk 0:03:12.8]} 22. Rd1
{[%clk 0:02:35.4]} 22... Rxd1+ {[%clk 0:03:12.2]} 23. Qxd1 {[%clk 0:02:37.3]}
23... h5 {[%clk 0:03:13.3]} 24. h3 {[%clk 0:02:38.3]} 24... h4 {[%clk
0:03:12.8]} 25. Nd4 {[%clk 0:02:36.9]} 25... Qd8 {[%clk 0:03:12.1]} 26. Qg4
{[%clk 0:02:22.1]} 26... Ne5 {[%clk 0:03:10.6]} 27. Qe4 {[%clk 0:02:19.6]} 27...
Qf6 {[%clk 0:03:02.5]} 28. Qxb7 {[%clk 0:02:07.7]} 28... Qf1+ {[%clk 0:03:01.5]}
29. Kh2 {[%clk 0:02:08.2]} 29... Qf4+ {[%clk 0:03:02.9]} 30. Kh1 {[%clk
0:02:08.3]} 30... g6 {[%clk 0:03:00.9]} 31. Qxa7 {[%clk 0:02:03]} 31... Nd3
{[%clk 0:02:56.3]} 32. Qa8+ {[%clk 0:02:03.2]} 32... Kg7 {[%clk 0:02:57]} 33.
Qf3 {[%clk 0:01:55.5]} 33... Qc1+ {[%clk 0:02:57.8]} 34. Kh2 {[%clk 0:01:55.4]}
34... Nxb2 {[%clk 0:02:59.1]} 35. Ne2 {[%clk 0:01:32.4]} 35... Qd2 {[%clk
0:02:57.9]} 36. Nf4 {[%clk 0:01:25.3]} 36... Nc4 {[%clk 0:02:58.4]} 37. Nd5
{[%clk 0:01:22.4]} 37... f5 {[%clk 0:02:51.4]} 38. Nf4 {[%clk 0:01:15.4]} 38...
Kh6 {[%clk 0:02:52.2]} 39. Ne6 {[%clk 0:01:11.2]} 39... Qd6+ {[%clk 0:02:52]}
40. Qf4+ {[%clk 0:01:11.6]} 40... Qxf4+ {[%clk 0:02:53]} 41. Nxf4 {[%clk
0:01:13.5]} 41... Kg5 {[%clk 0:02:53.4]} 42. Nd5 {[%clk 0:01:13.4]} 42... f4
{[%clk 0:02:49]} 43. a4 {[%clk 0:01:14.3]} 43... Kf5 {[%clk 0:02:50.1]} 44. Nb4
{[%clk 0:01:13]} 44... Na5 {[%clk 0:02:47.2]} 45. Kg1 {[%clk 0:01:13.2]} 45...
g5 {[%clk 0:02:47.8]} 46. Kf2 {[%clk 0:01:14.3]} 46... g4 {[%clk 0:02:48.7]} 47.
hxg4+ {[%clk 0:01:15]} 47... Kxg4 {[%clk 0:02:50.6]} 48. Nd5 {[%clk 0:01:14.9]}
48... Nc4 {[%clk 0:02:51.8]} 49. Nf6+ {[%clk 0:01:12]} 49... Kf5 {[%clk
0:02:52.9]} 50. Nd5 {[%clk 0:01:08.4]} 50... Kg4 {[%clk 0:02:51.8]} 51. Nb4
{[%clk 0:01:07.4]} 51... Na5 {[%clk 0:02:51]} 52. Nd3 {[%clk 0:01:08]} 52... Nb3
{[%clk 0:02:50.6]} 53. Ne5+ {[%clk 0:01:07.6]} 53... Kf5 {[%clk 0:02:51.7]} 54.
Nc4 {[%clk 0:01:08.7]} 54... Nc5 {[%clk 0:02:49.4]} 55. a5 {[%clk 0:01:09.3]}
55... Kg4 {[%clk 0:02:50.5]} 56. Ne5+ {[%clk 0:01:09.7]} 56... Kf5 {[%clk
0:02:51.5]} 57. Nc6 {[%clk 0:01:10.9]} 57... Kg4 {[%clk 0:02:51.5]} 58. Nb4
{[%clk 0:01:11.7]} 58... Ne4+ {[%clk 0:02:46.5]} 59. Kg1 {[%clk 0:01:12.3]}
59... Nxc3 {[%clk 0:02:41.7]} 60. a6 {[%clk 0:01:07.1]} 60... Nb5 {[%clk
0:02:43]} 61. Nc6 {[%clk 0:01:08]} 61... h3 {[%clk 0:02:42.5]} 62. gxh3+ {[%clk
0:00:23]} 62... Kxh3 {[%clk 0:02:44.4]} 63. a7 {[%clk 0:00:24.3]} 63... Nc7
{[%clk 0:02:44.1]} 64. Kf2 {[%clk 0:00:21.1]} 64... Kg4 {[%clk 0:02:44.2]} 65.
Ne5+ {[%clk 0:00:21.3]} 65... Kf5 {[%clk 0:02:45.6]} 66. Nd7 {[%clk 0:00:22.8]}
66... Ke4 {[%clk 0:02:44]} 67. Nb6 {[%clk 0:00:23.5]} 67... f3 {[%clk
0:02:44.6]} 68. a8=Q+ {[%clk 0:00:21.1]} 68... Nxa8 {[%clk 0:02:45.8]} 69. Nxa8
{[%clk 0:00:23]} 69... Kd5 {[%clk 0:02:45.2]} 1/2-1/2

[Event "*** Titled Tuesday Blitz"]
[Site "Chess.com"]
[Date "2020.01.07"]
[Round "5"]
[White "enriquetejedor"]
[Black "el-reptiliano"]
[Result "1-0"]
[WhiteElo "2485"]
[BlackElo "2312"]
[TimeControl "180+2"]
[EndTime "14:09:14 PST"]
[Termination "enriquetejedor won by checkmate"]

1. d4 {[%clk 0:03:01.9]} 1... d5 {[%clk 0:02:52.6]} 2. Nf3 {[%clk 0:03:02.2]}
2... Nf6 {[%clk 0:02:48.7]} 3. Bf4 {[%clk 0:02:55.4]} 3... e6 {[%clk 0:02:49.4]}
4. e3 {[%clk 0:02:47.6]} 4... Bd6 {[%clk 0:02:46.5]} 5. Bg3 {[%clk 0:02:48.3]}
5... O-O {[%clk 0:02:41]} 6. Nbd2 {[%clk 0:02:49.6]} 6... c5 {[%clk 0:02:41.9]}
7. c3 {[%clk 0:02:47]} 7... Qc7 {[%clk 0:02:42.1]} 8. Ne5 {[%clk 0:02:08]} 8...
Nc6 {[%clk 0:02:41.7]} 9. f4 {[%clk 0:02:04.8]} 9... Ne7 {[%clk 0:02:42.2]} 10.
Bd3 {[%clk 0:01:53.9]} 10... b5 {[%clk 0:02:42]} 11. Rc1 {[%clk 0:01:35.7]}
11... c4 {[%clk 0:01:50.2]} 12. Bb1 {[%clk 0:01:34.9]} 12... b4 {[%clk
0:01:50.1]} 13. O-O {[%clk 0:00:55.2]} 13... bxc3 {[%clk 0:01:39.5]} 14. bxc3
{[%clk 0:00:55.7]} 14... Rb8 {[%clk 0:01:40.2]} 15. Bh4 {[%clk 0:00:54.9]} 15...
Rb2 {[%clk 0:00:50.2]} 16. Rf2 {[%clk 0:00:27.1]} 16... Ng6 {[%clk 0:00:49.8]}
17. Bxf6 {[%clk 0:00:17.7]} 17... gxf6 {[%clk 0:00:51.7]} 18. Ng4 {[%clk
0:00:18.7]} 18... f5 {[%clk 0:00:50.8]} 19. Nf6+ {[%clk 0:00:09.2]} 19... Kg7
{[%clk 0:00:52.2]} 20. Nh5+ {[%clk 0:00:10.6]} 20... Kh8 {[%clk 0:00:53.4]} 21.
Nf3 {[%clk 0:00:08.9]} 21... Rxf2 {[%clk 0:00:53.6]} 22. Kxf2 {[%clk 0:00:10.8]}
22... Be7 {[%clk 0:00:55]} 23. Qg1 {[%clk 0:00:09.7]} 23... Bd7 {[%clk
0:00:53.7]} 24. g4 {[%clk 0:00:10.6]} 24... fxg4 {[%clk 0:00:55.2]} 25. Qxg4
{[%clk 0:00:12.5]} 25... e5 {[%clk 0:00:55.2]} 26. f5 {[%clk 0:00:11.7]} 26...
e4 {[%clk 0:00:46.3]} 27. Ng5 {[%clk 0:00:08.2]} 27... Qxh2+ {[%clk 0:00:43.7]}
28. Ke1 {[%clk 0:00:08.7]} 28... Qh1+ {[%clk 0:00:28.4]} 29. Kd2 {[%clk
0:00:09.5]} 29... Qh2+ {[%clk 0:00:29.9]} 30. Kd1 {[%clk 0:00:08.8]} 30... h6
{[%clk 0:00:21.6]} 31. Nxf7+ {[%clk 0:00:07]} 31... Rxf7 {[%clk 0:00:23.1]} 32.
Qxg6 {[%clk 0:00:08.5]} 32... Ba4+ {[%clk 0:00:23.9]} 33. Bc2 {[%clk 0:00:08.9]}
33... Qh1+ {[%clk 0:00:24.4]} 34. Kd2 {[%clk 0:00:09.6]} 34... Qh2+ {[%clk
0:00:25.3]} 35. Kd1 {[%clk 0:00:10.6]} 35... Rh7 {[%clk 0:00:17.5]} 36. Bxa4
{[%clk 0:00:07]} 36... Bg5 {[%clk 0:00:18.8]} 37. Qe8# {[%clk 0:00:06.9]} 1-0

[Event "*** Titled Tuesday Blitz"]
[Site "Chess.com"]
[Date "2020.01.07"]
[Round "5"]
[White "fish7728"]
[Black "Dynamikus"]
[Result "0-1"]
[WhiteElo "2133"]
[BlackElo "2456"]
[TimeControl "180+2"]
[EndTime "14:09:22 PST"]
[Termination "Dynamikus won by resignation"]

1. d4 {[%clk 0:03:01.9]} 1... Nf6 {[%clk 0:02:40.4]} 2. c4 {[%clk 0:03:02.3]}
2... e6 {[%clk 0:02:41.8]} 3. Nc3 {[%clk 0:03:02.4]} 3... Bb4 {[%clk 0:02:42]}
4. f3 {[%clk 0:03:03.7]} 4... c5 {[%clk 0:02:42.1]} 5. d5 {[%clk 0:03:04.3]}
5... Nh5 {[%clk 0:02:41]} 6. g3 {[%clk 0:02:58.4]} 6... f5 {[%clk 0:02:40.7]} 7.
Bd2 {[%clk 0:02:45.6]} 7... O-O {[%clk 0:02:36.1]} 8. Nb5 {[%clk 0:02:35.7]}
8... Ba5 {[%clk 0:02:12.6]} 9. Qc2 {[%clk 0:02:21.5]} 9... exd5 {[%clk
0:02:03.1]} 10. cxd5 {[%clk 0:02:21.1]} 10... d6 {[%clk 0:02:04.1]} 11. O-O-O
{[%clk 0:02:08.8]} 11... Bxd2+ {[%clk 0:01:53.8]} 12. Qxd2 {[%clk 0:02:04.6]}
12... a6 {[%clk 0:01:55.1]} 13. Nc3 {[%clk 0:02:04.1]} 13... b5 {[%clk
0:01:55.1]} 14. Nh3 {[%clk 0:01:42.5]} 14... Nd7 {[%clk 0:01:48.9]} 15. g4
{[%clk 0:01:21.6]} 15... fxg4 {[%clk 0:01:43.8]} 16. fxg4 {[%clk 0:01:20.7]}
16... Nhf6 {[%clk 0:01:44.5]} 17. g5 {[%clk 0:01:19.2]} 17... Nh5 {[%clk
0:01:44.4]} 18. e3 {[%clk 0:01:03.5]} 18... Ne5 {[%clk 0:01:38.8]} 19. Nf4
{[%clk 0:00:59.3]} 19... Nxf4 {[%clk 0:01:25.9]} 20. exf4 {[%clk 0:00:59.6]}
20... Ng6 {[%clk 0:01:27.7]} 21. h4 {[%clk 0:00:44.6]} 21... Nxf4 {[%clk
0:01:25.1]} 22. Ne2 {[%clk 0:00:28.1]} 22... Nh5 {[%clk 0:01:19.1]} 23. Bh3
{[%clk 0:00:21]} 23... Bxh3 {[%clk 0:01:13.5]} 24. Rxh3 {[%clk 0:00:21.8]} 24...
Qd7 {[%clk 0:01:09.1]} 25. Re3 {[%clk 0:00:20.8]} 25... Rae8 {[%clk 0:01:06.6]}
26. Ng3 {[%clk 0:00:20.8]} 26... Nxg3 {[%clk 0:01:05]} 27. Rxg3 {[%clk
0:00:21.1]} 27... Re4 {[%clk 0:01:05.8]} 28. h5 {[%clk 0:00:20.8]} 28... Qf5
{[%clk 0:01:04.9]} 29. g6 {[%clk 0:00:18.6]} 29... hxg6 {[%clk 0:00:59.8]} 30.
hxg6 {[%clk 0:00:18.2]} 30... Rc4+ {[%clk 0:01:00.8]} 31. Rc3 {[%clk 0:00:18.4]}
31... Rxc3+ {[%clk 0:01:01.6]} 32. Qxc3 {[%clk 0:00:18.4]} 32... Qxg6 {[%clk
0:01:03.5]} 33. Qe3 {[%clk 0:00:14.6]} 33... Qh6 {[%clk 0:00:57.8]} 34. Qxh6
{[%clk 0:00:12.8]} 34... gxh6 {[%clk 0:00:59.7]} 35. Re1 {[%clk 0:00:13.7]}
35... Rf5 {[%clk 0:01:00.5]} 36. Re6 {[%clk 0:00:14.3]} 36... Rxd5 {[%clk
0:01:01.8]} 37. Rxh6 {[%clk 0:00:14.4]} 37... a5 {[%clk 0:00:59.8]} 38. Rh3
{[%clk 0:00:13.2]} 38... a4 {[%clk 0:00:56.4]} 39. b3 {[%clk 0:00:11.9]} 39...
axb3 {[%clk 0:00:54.2]} 40. axb3 {[%clk 0:00:12.2]} 40... Kf7 {[%clk 0:00:51.2]}
41. Kc2 {[%clk 0:00:13]} 41... Rd4 {[%clk 0:00:52.2]} 42. Rh7+ {[%clk
0:00:12.5]} 42... Ke6 {[%clk 0:00:51.8]} 43. Rb7 {[%clk 0:00:13.4]} 43... b4
{[%clk 0:00:52.9]} 44. Rb8 {[%clk 0:00:14.3]} 44... Kd5 {[%clk 0:00:53.6]} 45.
Rc8 {[%clk 0:00:11.1]} 45... Rh4 {[%clk 0:00:54.1]} 46. Kb2 {[%clk 0:00:08.8]}
46... Rh2+ {[%clk 0:00:54.7]} 47. Kc1 {[%clk 0:00:09.8]} 47... Kd4 {[%clk
0:00:56]} 48. Rh8 {[%clk 0:00:09.9]} 48... Rxh8 {[%clk 0:00:50.5]} 0-1

[Event "*** Titled Tuesday Blitz"]
[Site "Chess.com"]
[Date "2020.01.07"]
[Round "5"]
[White "Firouzja2003"]
[Black "BilodeauA"]
[Result "0-1"]
[WhiteElo "3055"]
[BlackElo "2817"]
[TimeControl "180+2"]
[EndTime "14:09:36 PST"]
[Termination "BilodeauA won on time"]

1. Nf3 {[%clk 0:03:01.9]} 1... d5 {[%clk 0:03:00.9]} 2. g3 {[%clk 0:03:02]} 2...
Nd7 {[%clk 0:03:01.8]} 3. d4 {[%clk 0:03:02]} 3... Nb6 {[%clk 0:03:03.2]} 4. Bg2
{[%clk 0:03:00.6]} 4... Bf5 {[%clk 0:03:04.3]} 5. b3 {[%clk 0:02:47.4]} 5... e6
{[%clk 0:03:04.6]} 6. Bb2 {[%clk 0:02:48.5]} 6... h6 {[%clk 0:02:57.6]} 7. Nbd2
{[%clk 0:02:49]} 7... Nf6 {[%clk 0:02:58.6]} 8. O-O {[%clk 0:02:49.5]} 8... Be7
{[%clk 0:03:00.1]} 9. c4 {[%clk 0:02:50.5]} 9... c6 {[%clk 0:03:00.4]} 10. e3
{[%clk 0:02:46.2]} 10... O-O {[%clk 0:02:35.8]} 11. Qe2 {[%clk 0:02:45.9]} 11...
a5 {[%clk 0:02:32.6]} 12. a3 {[%clk 0:02:45]} 12... Ne4 {[%clk 0:02:23.7]} 13.
Rfc1 {[%clk 0:02:42.9]} 13... Re8 {[%clk 0:02:13.9]} 14. Ne5 {[%clk 0:02:40.7]}
14... Nxd2 {[%clk 0:02:12.2]} 15. Qxd2 {[%clk 0:02:41.8]} 15... Nd7 {[%clk
0:02:05.1]} 16. Nf3 {[%clk 0:02:42.4]} 16... Be4 {[%clk 0:02:04.7]} 17. Qe2
{[%clk 0:02:42.1]} 17... a4 {[%clk 0:02:03]} 18. b4 {[%clk 0:02:40.6]} 18... Nb6
{[%clk 0:02:00.5]} 19. c5 {[%clk 0:02:41.8]} 19... Nc4 {[%clk 0:01:56.9]} 20.
Bc3 {[%clk 0:02:42.9]} 20... Bf6 {[%clk 0:01:50]} 21. Nd2 {[%clk 0:02:08.6]}
21... Nxd2 {[%clk 0:01:50]} 22. Qxd2 {[%clk 0:02:09]} 22... Bxg2 {[%clk
0:01:51.1]} 23. Kxg2 {[%clk 0:02:10.4]} 23... e5 {[%clk 0:01:52.1]} 24. dxe5
{[%clk 0:02:04.4]} 24... Bxe5 {[%clk 0:01:54]} 25. Bxe5 {[%clk 0:02:06.1]} 25...
Rxe5 {[%clk 0:01:55.5]} 26. Rab1 {[%clk 0:02:08]} 26... Qd7 {[%clk 0:01:52.5]}
27. b5 {[%clk 0:02:07.2]} 27... Re4 {[%clk 0:01:39.1]} 28. Rb4 {[%clk
0:02:00.7]} 28... Rae8 {[%clk 0:01:39.8]} 29. bxc6 {[%clk 0:01:59.7]} 29... bxc6
{[%clk 0:01:40.9]} 30. Rcb1 {[%clk 0:01:55]} 30... h5 {[%clk 0:01:39.4]} 31.
Rxe4 {[%clk 0:01:53.1]} 31... Rxe4 {[%clk 0:01:40.1]} 32. Rb4 {[%clk 0:01:45]}
32... Qe7 {[%clk 0:01:07.8]} 33. Qc3 {[%clk 0:00:36.5]} 33... f5 {[%clk
0:00:58.4]} 34. h4 {[%clk 0:00:36.7]} 34... Kh7 {[%clk 0:00:55.3]} 35. Kf1
{[%clk 0:00:32.8]} 35... Rxb4 {[%clk 0:00:39.3]} 36. Qxb4 {[%clk 0:00:29.7]}
36... Qe4 {[%clk 0:00:40.8]} 37. Qd4 {[%clk 0:00:21.9]} 37... Qh1+ {[%clk
0:00:28]} 38. Ke2 {[%clk 0:00:22.9]} 38... Qc1 {[%clk 0:00:28.5]} 39. Qe5 {[%clk
0:00:18.2]} 39... Qc4+ {[%clk 0:00:28.9]} 40. Kf3 {[%clk 0:00:13.7]} 40... Qxc5
{[%clk 0:00:24.5]} 41. Qxf5+ {[%clk 0:00:14.4]} 41... Kg8 {[%clk 0:00:26.2]} 42.
Qxh5 {[%clk 0:00:10.5]} 42... Qxa3 {[%clk 0:00:27.5]} 43. Qe8+ {[%clk
0:00:11.6]} 43... Qf8+ {[%clk 0:00:28.6]} 0-1

[Event "*** Titled Tuesday Blitz"]
[Site "Chess.com"]
[Date "2020.01.07"]
[Round "5"]
[White "SirMittensofMittensville"]
[Black "goldenspine"]
[Result "1-0"]
[WhiteElo "2558"]
[BlackElo "2342"]
[TimeControl "180+2"]
[EndTime "14:09:40 PST"]
[Termination "SirMittensofMittensville won by resignation"]

1. e4 {[%clk 0:03:01.9]} 1... c6 {[%clk 0:03:00.8]} 2. Nc3 {[%clk 0:02:59.2]}
2... d5 {[%clk 0:03:02.1]} 3. Nf3 {[%clk 0:02:59.2]} 3... dxe4 {[%clk
0:03:01.7]} 4. Nxe4 {[%clk 0:03:00.1]} 4... Nd7 {[%clk 0:03:03.2]} 5. Bc4 {[%clk
0:02:58.5]} 5... e6 {[%clk 0:03:00.7]} 6. d4 {[%clk 0:02:58.6]} 6... Ngf6 {[%clk
0:03:01.3]} 7. Nxf6+ {[%clk 0:02:56.9]} 7... Nxf6 {[%clk 0:02:59.5]} 8. O-O
{[%clk 0:02:58.8]} 8... Bd6 {[%clk 0:02:58]} 9. Qe2 {[%clk 0:02:58.6]} 9... O-O
{[%clk 0:02:59]} 10. Bg5 {[%clk 0:02:59.2]} 10... h6 {[%clk 0:02:58.8]} 11. Bh4
{[%clk 0:02:59.3]} 11... Be7 {[%clk 0:02:58.8]} 12. Rad1 {[%clk 0:02:59.4]}
12... Qa5 {[%clk 0:02:59]} 13. Ne5 {[%clk 0:02:55.8]} 13... c5 {[%clk
0:02:56.6]} 14. Ng4 {[%clk 0:02:41.5]} 14... Nd5 {[%clk 0:02:42.1]} 15. Bxe7
{[%clk 0:01:51.1]} 15... Nxe7 {[%clk 0:02:42.6]} 16. Qe5 {[%clk 0:01:52.2]}
16... b6 {[%clk 0:02:19.5]} 17. Bd3 {[%clk 0:01:17.3]} 17... f5 {[%clk
0:01:46.4]} 18. Qd6 {[%clk 0:01:09.7]} 18... Nd5 {[%clk 0:01:06.5]} 19. Ne5
{[%clk 0:01:02.6]} 19... cxd4 {[%clk 0:01:07.4]} 20. Ng6 {[%clk 0:00:39.5]}
20... Re8 {[%clk 0:00:55.4]} 21. Qc6 {[%clk 0:00:40.6]} 21... Ba6 {[%clk
0:00:52.4]} 22. Bxa6 {[%clk 0:00:40.8]} 22... Qxa6 {[%clk 0:00:53.3]} 23. Rxd4
{[%clk 0:00:40.2]} 23... Rac8 {[%clk 0:00:47.8]} 24. Qd6 {[%clk 0:00:38.7]}
24... Qb5 {[%clk 0:00:37.7]} 25. c3 {[%clk 0:00:37.6]} 25... Qc6 {[%clk
0:00:37.7]} 26. Qxc6 {[%clk 0:00:37.4]} 26... Rxc6 {[%clk 0:00:39.6]} 27. Ne5
{[%clk 0:00:38.8]} 27... Rc7 {[%clk 0:00:39.4]} 28. Rfd1 {[%clk 0:00:39.7]}
28... Nf6 {[%clk 0:00:40]} 29. c4 {[%clk 0:00:40.5]} 29... Ne4 {[%clk
0:00:41.1]} 30. f3 {[%clk 0:00:41.5]} 30... Nc5 {[%clk 0:00:42.1]} 31. b3 {[%clk
0:00:42.5]} 31... Rec8 {[%clk 0:00:42.4]} 32. Kf2 {[%clk 0:00:43.6]} 32... a5
{[%clk 0:00:43.3]} 33. h4 {[%clk 0:00:43.2]} 33... Nb7 {[%clk 0:00:37.8]} 34. h5
{[%clk 0:00:42.9]} 34... Kf8 {[%clk 0:00:37.7]} 35. Rd7 {[%clk 0:00:43.4]} 35...
Ke8 {[%clk 0:00:36.9]} 36. Kg3 {[%clk 0:00:43.2]} 36... Rc5 {[%clk 0:00:23.7]}
37. Rxb7 {[%clk 0:00:43.5]} 37... Rxe5 {[%clk 0:00:24.2]} 38. Rdd7 {[%clk
0:00:44.3]} 38... f4+ {[%clk 0:00:24.2]} 39. Kxf4 {[%clk 0:00:44.3]} 39... Rf5+
{[%clk 0:00:23.3]} 40. Ke4 {[%clk 0:00:44.3]} 40... Rd8 {[%clk 0:00:18.4]} 41.
Rxg7 {[%clk 0:00:42.9]} 41... Kf8 {[%clk 0:00:19.4]} 42. Rh7 {[%clk 0:00:43.4]}
42... Kg8 {[%clk 0:00:19.8]} 43. Rbg7+ {[%clk 0:00:43.6]} 43... Kf8 {[%clk
0:00:20.7]} 44. Rh8+ {[%clk 0:00:43.4]} 44... Kxg7 {[%clk 0:00:22]} 45. Rxd8
{[%clk 0:00:45.3]} 45... Rxh5 {[%clk 0:00:22.4]} 46. Rd6 {[%clk 0:00:45.7]}
46... Rh2 {[%clk 0:00:23.5]} 47. g4 {[%clk 0:00:43.1]} 47... Rxa2 {[%clk
0:00:23.4]} 48. Rxe6 {[%clk 0:00:43.9]} 48... a4 {[%clk 0:00:22.6]} 49. bxa4
{[%clk 0:00:44.7]} 49... Rxa4 {[%clk 0:00:23.4]} 50. Kd5 {[%clk 0:00:45.8]}
50... Ra3 {[%clk 0:00:21.6]} 51. f4 {[%clk 0:00:45.4]} 51... Rg3 {[%clk
0:00:21.5]} 52. Rxb6 {[%clk 0:00:44.8]} 52... Rxg4 {[%clk 0:00:22.1]} 53. Ke5
{[%clk 0:00:45.6]} 53... Rg1 {[%clk 0:00:22.7]} 54. Rb7+ {[%clk 0:00:46]} 54...
Kg6 {[%clk 0:00:23.7]} 55. f5+ {[%clk 0:00:47.6]} 55... Kg5 {[%clk 0:00:25.1]}
56. Rg7+ {[%clk 0:00:48.6]} 56... Kh5 {[%clk 0:00:25.7]} 57. Rxg1 {[%clk
0:00:50.5]} 1-0